bitfinex/quotes_BTCUSD_20230117
["timestamp","ask_amount","ask_price","bid_price","bid_amount"]
[1673992801386,0.00020973,21318.0,21317.0,0.1101]
[1673992801596,0.08341973,21318.0,21317.0,0.1101]
[1673992802680,0.55250673,21318.0,21317.0,0.1101]
[1673992803717,0.552297,21318.0,21317.0,0.1101]
[1673992804268,0.561297,21318.0,21317.0,0.1111]
[1673992804504,0.56150673,21318.0,21317.0,0.1111]
[1673992807326,0.09241973,21318.0,21317.0,0.1111]
[1673992807587,0.09221,21318.0,21317.0,0.1111]
[1673992810432,0.09221,21318.0,21317.0,0.3411]
[1673992810695,0.009,21318.0,21317.0,0.3411]
[1673992811489,0.00920973,21318.0,21317.0,0.231]
[1673992812036,0.009,21318.0,21317.0,0.231]
[1673992812561,0.09241973,21318.0,21317.0,0.231]
[1673992814399,0.56150673,21318.0,21317.0,0.231]
[1673992814905,0.009,21318.0,21317.0,0.231]
[1673992815162,0.009,21318.0,21317.0,0.809209]
[1673992815421,0.009,21318.0,21317.0,1.109209]
[1673992815687,0.009,21318.0,21317.0,1.43009]
[1673992815960,0.009,21318.0,21317.0,1.13009]
[1673992816209,0.009,21318.0,21317.0,1.43009]
[1673992817022,0.009,21318.0,21317.0,0.3401]
[1673992817023,0.00920973,21318.0,21317.0,0.3401]
[1673992817295,0.009,21318.0,21317.0,0.3401]
[1673992817794,0.009,21318.0,21317.0,0.44063301]
[1673992818779,0.009,21318.0,21317.0,1.05797001]
[1673992819049,0.00843573,21318.0,21317.0,1.37885101]
[1673992819647,0.00843573,21318.0,21317.0,1.67885101]
[1673992819887,0.00843573,21318.0,21317.0,1.37885101]
[1673992820143,0.00843573,21318.0,21317.0,1.05797001]
[1673992821153,0.00843573,21318.0,21317.0,1.67885101]
[1673992821159,0.00843573,21318.0,21317.0,1.05797001]
[1673992821416,0.00843573,21318.0,21317.0,1.16777001]
[1673992821672,0.09164573,21318.0,21317.0,1.16777001]
[1673992821935,0.09164573,21318.0,21317.0,0.12045201]
[1673992822766,0.09164573,21318.0,21317.0,0.13425243]
[1673992823844,0.00843573,21318.0,21317.0,0.13425243]
[1673992824089,0.09164573,21318.0,21317.0,0.13425243]
[1673992824929,0.00843573,21318.0,21317.0,0.13425243]
[1673992826281,0.09164573,21318.0,21317.0,0.13425243]
[1673992828889,0.00843573,21318.0,21317.0,0.13425243]
[1673992830064,0.09164573,21318.0,21317.0,0.13425243]
[1673992830792,0.41252673,21318.0,21317.0,0.13425243]
[1673992840224,0.88161373,21318.0,21317.0,0.13425243]
[1673992840481,0.873178,21318.0,21317.0,0.13425243]
[1673992841536,0.882178,21318.0,21317.0,0.13425243]
[1673992842338,1.351265,21318.0,21317.0,0.13425243]
[1673992842598,1.351265,21318.0,21317.0,0.02445243]
[1673992842599,1.46337236,21318.0,21317.0,0.02445243]
[1673992842859,1.63166835,21318.0,21317.0,0.02445243]
[1673992843695,1.62266835,21318.0,21317.0,0.02445243]
[1673992843948,1.52737236,21318.0,21317.0,0.02445243]
[1673992844413,1.415265,21318.0,21317.0,0.02445243]
[1673992846723,1.52737236,21318.0,21317.0,0.02445243]
[1673992852412,0.18510736,21318.0,21317.0,0.2219966]
[1673992852666,0.18510736,21318.0,21317.0,0.24465243]
[1673992852667,0.073,21318.0,21317.0,0.24465243]
[1673992852916,0.073,21318.0,21317.0,0.86553343]
[1673992853457,0.073,21318.0,21317.0,1.33464243]
[1673992853707,0.91308471,21320.0,21317.0,1.33464243]
[1673992853973,0.91308471,21320.0,21319.0,0.1101]
[1673992854488,0.469036,21321.0,21319.0,0.1101]
[1673992855006,0.4689344,21321.0,21319.0,0.1101]
[1673992855861,0.58112536,21322.0,21320.0,0.2187]
[1673992856090,0.004,21321.0,21320.0,0.1092]
[1673992856319,0.93823773,21322.0,21320.0,0.2184]
[1673992856574,0.93823773,21322.0,21321.0,0.1101]
[1673992856838,1.05034509,21322.0,21321.0,0.1101]
[1673992858617,0.11210736,21322.0,21321.0,0.1101]
[1673992858872,0.08320973,21322.0,21321.0,0.1111]
[1673992859136,0.19531709,21322.0,21321.0,0.1111]
[1673992859923,0.08320973,21322.0,21321.0,0.1111]
[1673992861220,0.19531709,21322.0,21321.0,0.1111]
[1673992861472,0.19531709,21322.0,21321.0,0.001]
[1673992861993,0.94420485,21322.0,21321.0,0.001]
[1673992862258,1.73408485,21322.0,21321.0,0.001]
[1673992862529,1.45419609,21322.0,21321.0,0.001]
[1673992863297,1.13331509,21322.0,21321.0,0.001]
[1673992863581,1.93139778,21322.0,21321.0,0.001]
[1673992863831,2.73941221,21322.0,21321.0,0.001]
[1673992864067,3.79088549,21322.0,21321.0,0.001]
[1673992864329,3.78527362,21322.0,21321.0,0.001]
[1673992865132,3.35790251,21322.0,21321.0,0.001]
[1673992866633,3.33290251,21322.0,21321.0,0.001]
[1673992871167,3.05218642,21322.0,21321.0,0.001]
[1673992875025,3.18315477,21322.0,21321.0,0.001]
[1673992875560,3.33315477,21322.0,21321.0,0.001]
[1673992875797,3.05218642,21322.0,21321.0,0.001]
[1673992878275,3.18315247,21322.0,21321.0,0.001]
[1673992879504,2.90218642,21322.0,21321.0,0.001]
[1673992879763,3.18315242,21322.0,21321.0,0.001]
[1673992879984,2.90218642,21322.0,21321.0,0.001]
[1673992880245,3.18313863,21322.0,21321.0,0.001]
[1673992880499,2.90218642,21322.0,21321.0,0.001]
[1673992881283,4.27766791,21322.0,21321.0,0.001]
[1673992881549,0.00195979,21319.0,21317.0,0.02445243]
[1673992881805,3.57389923,21318.0,21317.0,0.02445243]
[1673992882061,4.31988701,21318.0,21317.0,0.02445243]
[1673992882316,3.6608152,21318.0,21317.0,0.02445243]
[1673992882823,3.43609789,21318.0,21317.0,0.02445243]
[1673992883083,4.14095368,21318.0,21317.0,0.02445243]
[1673992883370,4.62331284,21318.0,21317.0,0.02445243]
[1673992883634,4.62324732,21318.0,21317.0,0.02445243]
[1673992883883,3.91845705,21318.0,21317.0,0.02445243]
[1673992884186,4.14310335,21318.0,21317.0,0.02445243]
[1673992884402,3.91845705,21318.0,21317.0,0.02445243]
[1673992884656,4.39255922,21318.0,21317.0,0.02445243]
[1673992884921,5.22562145,21318.0,21317.0,0.02445243]
[1673992885190,4.92562145,21318.0,21317.0,0.02645243]
[1673992885447,4.92583118,21318.0,21317.0,0.02445243]
[1673992885724,4.99383118,21318.0,21317.0,0.02645243]
[1673992885958,4.99383118,21318.0,21317.0,0.02445243]
[1673992885959,5.03563118,21318.0,21317.0,0.02445243]
[1673992886216,5.34413118,21318.0,21317.0,0.02445243]
[1673992886469,5.41213118,21318.0,21317.0,0.02645243]
[1673992886728,5.34413118,21318.0,21317.0,0.02445243]
[1673992888287,5.41213118,21318.0,21317.0,0.02645243]
[1673992889300,5.74934868,21318.0,21317.0,0.02645243]
[1673992889564,5.70593118,21318.0,21317.0,0.02445243]
[1673992889819,6.00593118,21318.0,21317.0,0.02445243]
[1673992890071,5.5819722,21318.0,21317.0,0.02445243]
[1673992890699,5.6499722,21318.0,21317.0,0.02645243]
[1673992891133,6.07061721,21318.0,21317.0,0.02645243]
[1673992891384,5.40961721,21318.0,21317.0,0.02645243]
[1673992892438,4.98887398,21318.0,21317.0,0.02645243]
[1673992892691,5.40930588,21318.0,21317.0,0.02645243]
[1673992893223,0.01676512,21316.0,21315.0,0.00710739]
[1673992893493,3.71883474,21316.0,21315.0,0.00710739]
[1673992893734,4.5359622,21316.0,21315.0,0.00710739]
[1673992894239,4.55499514,21316.0,21315.0,0.00710739]
[1673992894492,4.62499514,21316.0,21315.0,0.00910739]
[1673992895239,0.15,21315.0,21313.0,1e-08]
[1673992895506,3.20888496,21314.0,21313.0,1e-08]
[1673992896278,3.31898496,21314.0,21313.0,1e-08]
[1673992898088,3.82123298,21314.0,21313.0,0.00200001]
[1673992898411,3.58108422,21314.0,21313.0,1e-08]
[1673992898567,3.65308422,21314.0,21313.0,0.00200001]
[1673992898829,3.65329395,21314.0,21313.0,0.00200001]
[1673992899079,4.12739612,21314.0,21313.0,0.00200001]
[1673992899585,4.12739612,21314.0,21313.0,0.23200001]
[1673992900106,4.29554488,21314.0,21313.0,0.23200001]
[1673992901364,4.14554488,21314.0,21313.0,0.23200001]
[1673992901622,0.27712734,21312.0,21310.0,0.00797562]
[1673992901880,2.88988156,21311.0,21310.0,0.00797562]
[1673992902414,3.00848156,21311.0,21310.0,0.00797562]
[1673992902703,3.28862121,21311.0,21310.0,0.00797562]
[1673992902947,3.75373094,21311.0,21310.0,0.00797562]
[1673992903210,3.65964715,21311.0,21310.0,0.00997562]
[1673992903717,4.3116036,21311.0,21310.0,0.00997562]
[1673992904247,4.78570577,21311.0,21310.0,0.00997562]
[1673992904499,5.08570577,21311.0,21310.0,0.00997562]
[1673992904793,4.97364991,21311.0,21310.0,0.00997562]
[1673992905063,5.02982987,21311.0,21310.0,0.00997562]
[1673992905317,5.13982987,21311.0,21310.0,0.00997562]
[1673992905831,5.97465547,21311.0,21310.0,0.00997562]
[1673992906140,5.13982987,21311.0,21310.0,0.00997562]
[1673992906595,5.30769478,21311.0,21310.0,0.00997562]
[1673992906858,5.30769478,21311.0,21308.0,0.00797562]
[1673992906859,0.00989438,21310.0,21308.0,0.00797562]
[1673992907121,3.313724,21309.0,21308.0,0.00797562]
[1673992907395,4.15036457,21309.0,21308.0,0.00797562]
[1673992907618,3.98250712,21309.0,21308.0,0.00797562]
[1673992907865,4.04045968,21309.0,21308.0,0.00797562]
[1673992908118,4.51456185,21309.0,21308.0,0.00797562]
[1673992908379,4.38275191,21309.0,21308.0,0.00797562]
[1673992908620,4.60656185,21309.0,21308.0,0.00797562]
[1673992908866,3.90864974,21309.0,21308.0,0.00797562]
[1673992909117,3.96460712,21309.0,21308.0,0.00797562]
[1673992909374,4.90883488,21309.0,21308.0,0.00797562]
[1673992909625,4.81683488,21309.0,21308.0,0.00797562]
[1673992909886,5.29093705,21309.0,21308.0,0.00797562]
[1673992910134,0.15,21308.0,21304.0,0.00588418]
[1673992910382,0.26,21305.0,21304.0,0.00588418]
[1673992910635,3.36004634,21305.0,21304.0,0.00588418]
[1673992910884,3.66854634,21305.0,21304.0,0.00588418]
[1673992911403,4.10213137,21305.0,21304.0,0.00588418]
[1673992911661,4.40213137,21305.0,21304.0,0.00588418]
[1673992911913,4.51223137,21305.0,21304.0,0.00588418]
[1673992912451,4.60423137,21305.0,21304.0,0.00588418]
[1673992912705,4.51223137,21305.0,21304.0,0.00588418]
[1673992912950,4.60423137,21305.0,21304.0,0.00588418]
[1673992913480,0.15,21304.0,21301.0,0.00526027]
[1673992913795,3.10027037,21303.0,21301.0,0.00526027]
[1673992914000,0.79808269,21302.0,21301.0,0.00526027]
[1673992914246,1.73696069,21302.0,21301.0,0.00526027]
[1673992916029,1.82896069,21302.0,21301.0,0.00526027]
[1673992917327,2.1591945,21302.0,21301.0,0.00526027]
[1673992917648,1.72446469,21302.0,21301.0,0.00526027]
[1673992918378,1.81646469,21302.0,21301.0,0.00526027]
[1673992919718,0.49933906,21301.0,21299.0,0.08476027]
[1673992919970,1.73704869,21300.0,21299.0,0.08476027]
[1673992920224,1.41616769,21300.0,21299.0,0.08476027]
[1673992921279,1.73704869,21300.0,21299.0,0.08476027]
[1673992921628,1.41616769,21300.0,21298.0,0.1101]
[1673992922093,1.50816769,21300.0,21298.0,0.1101]
[1673992922348,1.41616769,21300.0,21298.0,0.1101]
[1673992922608,0.320881,21299.0,21298.0,0.1101]
[1673992922929,1.03868469,21300.0,21299.0,0.23]
[1673992923131,1.50837742,21300.0,21299.0,0.23]
[1673992923410,1.50837742,21300.0,21299.0,0.3395]
[1673992923411,0.94668469,21300.0,21299.0,0.3395]
[1673992924990,1.03868469,21300.0,21299.0,0.3395]
[1673992925243,0.561483,21300.0,21299.0,0.3395]
[1673992925527,0.092,21300.0,21299.0,0.3395]
[1673992925783,0.092,21300.0,21299.0,0.660381]
[1673992926017,0.092,21300.0,21299.0,0.770481]
[1673992926290,0.092,21300.0,21299.0,0.85792517]
[1673992926575,0.092,21300.0,21299.0,3.03010539]
[1673992927366,0.092,21300.0,21299.0,2.36980539]
[1673992927634,0.092,21300.0,21299.0,2.37680539]
[1673992927635,0.004,21300.0,21299.0,2.37680539]
[1673992927891,0.46939,21305.0,21299.0,2.36980539]
[1673992928176,0.66011595,21305.0,21304.0,0.1095]
[1673992928457,0.93897273,21305.0,21304.0,0.1091]
[1673992929211,1.02297273,21305.0,21304.0,0.1101]
[1673992929691,1.022763,21305.0,21304.0,0.1101]
[1673992929961,1.02297273,21305.0,21304.0,0.1101]
[1673992930218,1.022763,21305.0,21304.0,0.1101]
[1673992930764,1.91390571,21305.0,21304.0,0.001]
[1673992931013,2.23478671,21305.0,21304.0,0.001]
[1673992932048,2.38478671,21305.0,21304.0,0.001]
[1673992933632,1.91390571,21305.0,21304.0,0.001]
[1673992933869,2.23478671,21305.0,21304.0,0.001]
[1673992934354,2.06390571,21305.0,21304.0,0.001]
[1673992934608,2.38478671,21305.0,21304.0,0.001]
[1673992935358,2.06390571,21305.0,21304.0,0.001]
[1673992936109,2.38478671,21305.0,21304.0,0.001]
[1673992936374,2.49660182,21305.0,21304.0,0.001]
[1673992936631,2.17572082,21305.0,21304.0,0.001]
[1673992936894,2.49660182,21305.0,21304.0,0.001]
[1673992938702,2.34660182,21305.0,21304.0,0.001]
[1673992939232,1.91390571,21305.0,21304.0,0.001]
[1673992940303,2.51432448,21305.0,21304.0,0.001]
[1673992940569,2.34344348,21305.0,21304.0,0.001]
[1673992940821,2.66432448,21305.0,21304.0,0.001]
[1673992941098,2.49660182,21305.0,21304.0,0.001]
[1673992941633,2.66432448,21305.0,21304.0,0.001]
[1673992941885,2.17572082,21305.0,21304.0,0.001]
[1673992942137,2.55250937,21305.0,21304.0,0.001]
[1673992942415,2.77631931,21305.0,21304.0,0.001]
[1673992942666,3.15886458,21305.0,21304.0,0.001]
[1673992943168,2.77631931,21305.0,21304.0,0.001]
[1673992943696,2.45543831,21305.0,21304.0,0.001]
[1673992943937,2.60859665,21305.0,21304.0,0.001]
[1673992944175,3.4429271,21305.0,21304.0,0.001]
[1673992944418,3.1220461,21305.0,21304.0,0.001]
[1673992944666,3.4429271,21305.0,21304.0,0.001]
[1673992944985,3.1220461,21305.0,21304.0,0.001]
[1673992945188,3.4429271,21305.0,21304.0,0.001]
[1673992945440,3.1220461,21305.0,21304.0,0.001]
[1673992945692,4.09372159,21305.0,21304.0,0.001]
[1673992945943,4.20382159,21305.0,21304.0,0.001]
[1673992946195,4.51889099,21305.0,21304.0,0.001]
[1673992946453,0.15,21304.0,21300.0,0.1061]
[1673992946696,0.28057803,21302.0,21300.0,0.1061]
[1673992946947,0.47130398,21302.0,21300.0,0.1061]
[1673992947205,0.469461,21301.0,21300.0,0.1061]
[1673992947458,0.469461,21301.0,21300.0,0.1071]
[1673992947781,0.94666269,21301.0,21300.0,0.1061]
[1673992948006,0.94666269,21301.0,21300.0,0.1071]
[1673992948258,1.41612369,21301.0,21300.0,0.1061]
[1673992948508,1.50133342,21301.0,21300.0,0.1071]
[1673992954850,0.554461,21301.0,21300.0,0.1071]
[1673992955116,0.085,21301.0,21300.0,0.2162]
[1673992955366,0.085,21301.0,21300.0,0.375283]
[1673992956440,0.085,21301.0,21300.0,0.15795316]
[1673992956683,0.085,21301.0,21300.0,0.26275316]
[1673992957704,0.085,21301.0,21300.0,0.95243616]
[1673992958210,0.085,21301.0,21300.0,1.25243616]
[1673992959290,0.085,21301.0,21300.0,1.72191916]
[1673992959526,0.085,21301.0,21300.0,3.91682833]
[1673992959786,0.085,21301.0,21300.0,4.02836952]
[1673992960581,0.00249678,21303.0,21300.0,4.02836952]
[1673992960838,0.008,21301.0,21300.0,2.02350719]
[1673992961119,0.008,21301.0,21300.0,2.67991956]
[1673992961371,0.008,21301.0,21300.0,4.09587837]
[1673992961676,0.00249678,21303.0,21300.0,4.20741956]
[1673992961893,0.01049678,21303.0,21302.0,0.3299]
[1673992962160,0.01049678,21303.0,21302.0,4.80574054]
[1673992962425,0.01049678,21303.0,21302.0,4.87686661]
[1673992962678,0.00249678,21303.0,21302.0,4.87686661]
[1673992963220,0.00249678,21303.0,21302.0,4.76532542]
[1673992963460,0.01049678,21303.0,21302.0,4.01211084]
[1673992965498,0.01049678,21303.0,21302.0,2.23961084]
[1673992965767,0.01049678,21303.0,21302.0,2.19258179]
[1673992966791,0.01049678,21303.0,21302.0,1.72314279]
[1673992968201,0.01049678,21303.0,21302.0,1.61304279]
[1673992971273,0.10313678,21303.0,21302.0,0.4437]
[1673992971536,0.10313678,21303.0,21302.0,0.013]
[1673992972320,1.04197078,21303.0,21302.0,0.013]
[1673992975022,1.36300378,21303.0,21302.0,0.013]
[1673992975292,1.04197078,21303.0,21302.0,0.013]
[1673992975543,1.84020547,21303.0,21302.0,0.013]
[1673992976261,2.06275336,21303.0,21302.0,0.013]
[1673992976510,2.06275336,21303.0,21299.0,0.3395]
[1673992976511,0.01299999,21301.0,21299.0,0.23]
[1673992976769,0.469483,21300.0,21299.0,0.23]
[1673992977045,1.259999,21300.0,21299.0,0.23]
[1673992977334,0.938966,21300.0,21299.0,0.23]
[1673992977601,1.259999,21300.0,21299.0,0.231]
[1673992977859,1.259999,21300.0,21299.0,0.23]
[1673992978116,1.017966,21300.0,21299.0,0.231]
[1673992978383,1.338999,21300.0,21299.0,0.231]
[1673992978680,1.017966,21300.0,21299.0,0.231]
[1673992980093,0.079,21300.0,21299.0,0.231]
[1673992980353,0.079,21300.0,21299.0,0.552033]
[1673992980614,0.079,21300.0,21299.0,0.231]
[1673992981427,0.079,21300.0,21299.0,0.552033]
[1673992981930,0.079,21300.0,21299.0,0.231]
[1673992982456,0.079,21300.0,21299.0,0.552033]
[1673992982728,0.079,21300.0,21299.0,0.231]
[1673992982998,0.079,21300.0,21299.0,0.552033]
[1673992983514,0.079,21300.0,21299.0,1.396538]
[1673992984218,0.079,21300.0,21299.0,1.096538]
[1673992984479,0.079,21300.0,21299.0,1.396538]
[1673992985281,0.079,21300.0,21299.0,1.866043]
[1673992986059,0.07890608,21300.0,21299.0,1.866043]
[1673992995240,0.07890608,21300.0,21299.0,2.79715925]
[1673992995573,0.07890608,21300.0,21299.0,2.7502047]
[1673992995786,0.07890608,21300.0,21299.0,3.7450084]
[1673992996064,0.41716098,21308.0,21299.0,3.95855881]
[1673992996322,0.41716098,21308.0,21306.0,0.075]
[1673992996323,0.19072595,21308.0,21306.0,0.075]
[1673992996581,0.00020973,21308.0,21307.0,0.40834417]
[1673992996834,1.10784047,21309.0,21307.0,0.40834417]
[1673992997090,0.99560926,21309.0,21307.0,0.55677317]
[1673992997347,0.00608725,21309.0,21307.0,0.55677317]
[1673992997605,0.00608725,21309.0,21307.0,0.469329]
[1673992997854,0.00629698,21309.0,21306.0,0.54433]
[1673992998137,0.00629698,21309.0,21306.0,0.46933]
[1673992998363,0.00629698,21309.0,21306.0,0.938681]
[1673992998873,0.00629698,21309.0,21307.0,0.002]
[1673992999128,0.07829698,21309.0,21306.0,0.938681]
[1673992999446,0.15029698,21309.0,21306.0,0.940681]
[1673992999889,0.00629698,21309.0,21306.0,0.938681]
[1673993000151,0.07829698,21309.0,21307.0,0.002]
[1673993000409,0.00608725,21309.0,21308.0,0.321033]
[1673993000743,0.00608725,21309.0,21308.0,1.09034]
[1673993000744,0.09508725,21309.0,21308.0,1.09034]
[1673993000929,0.09508725,21309.0,21308.0,0.79034]
[1673993001440,0.09508725,21309.0,21308.0,1.09034]
[1673993001944,0.00608725,21309.0,21308.0,1.09034]
[1673993002210,0.09508725,21309.0,21308.0,1.09034]
[1673993002472,0.09508725,21309.0,21308.0,1.633947]
[1673993005113,0.09508725,21309.0,21308.0,1.333947]
[1673993005372,0.09508725,21309.0,21308.0,1.633947]
[1673993005631,0.09508725,21309.0,21308.0,1.333947]
[1673993005935,0.09508725,21309.0,21308.0,1.633947]
[1673993009488,0.09508725,21309.0,21308.0,1.863947]
[1673993009754,0.09508725,21309.0,21308.0,1.563947]
[1673993010037,0.09508725,21309.0,21308.0,1.863947]
[1673993010542,0.09501159,21309.0,21308.0,1.563947]
[1673993011104,0.09501159,21309.0,21308.0,1.863947]
[1673993011314,0.09501159,21309.0,21308.0,1.489647]
[1673993011820,0.09501159,21309.0,21308.0,1.789647]
[1673993012083,0.09501159,21309.0,21308.0,1.864647]
[1673993022345,0.09522132,21309.0,21308.0,1.564647]
[1673993022604,0.09501159,21309.0,21308.0,1.564647]
[1673993022866,0.09501159,21309.0,21308.0,1.243614]
[1673993023861,0.09501159,21309.0,21308.0,1.480916]
[1673993024445,0.09501159,21309.0,21308.0,1.243614]
[1673993024972,0.09501159,21309.0,21308.0,1.168614]
[1673993025990,0.09501159,21309.0,21308.0,1.388214]
[1673993026242,0.09501159,21309.0,21308.0,1.625516]
[1673993027799,0.09501159,21309.0,21308.0,1.925516]
[1673993028054,0.09501159,21309.0,21308.0,1.625516]
[1673993029521,0.09501159,21309.0,21308.0,1.388214]
[1673993030000,0.09501159,21309.0,21308.0,1.625516]
[1673993030529,0.09501159,21309.0,21308.0,1.388214]
[1673993030769,0.09501159,21309.0,21308.0,1.625516]
[1673993031545,0.09501159,21309.0,21308.0,1.515616]
[1673993031802,0.09501159,21309.0,21308.0,1.278314]
[1673993033408,0.09501159,21309.0,21308.0,1.578314]
[1673993034197,0.09501159,21309.0,21308.0,1.815616]
[1673993034479,0.09501159,21309.0,21308.0,1.578314]
[1673993034938,0.09501159,21309.0,21308.0,1.815616]
[1673993035450,0.09501159,21309.0,21308.0,2.82546309]
[1673993035451,0.07001159,21309.0,21308.0,2.82546309]
[1673993035964,0.07001159,21309.0,21308.0,1.925816]
[1673993037324,0.07001159,21309.0,21308.0,2.83506149]
[1673993037582,0.07001159,21309.0,21308.0,4.13839479]
[1673993037857,0.07001159,21309.0,21308.0,4.53008276]
[1673993038173,0.07001159,21309.0,21308.0,4.41954524]
[1673993038480,0.00642574,21310.0,21308.0,4.41954524]
[1673993038739,0.007,21309.0,21308.0,2.38103555]
[1673993038997,0.007,21309.0,21308.0,4.1144192]
[1673993039261,0.007,21309.0,21308.0,3.89135129]
[1673993039523,0.00642574,21310.0,21309.0,0.15]
[1673993039802,0.00642574,21310.0,21309.0,3.82077203]
[1673993039803,0.01342574,21310.0,21309.0,3.82077203]
[1673993040059,0.01342574,21310.0,21309.0,4.06646003]
[1673993040312,0.01342574,21310.0,21309.0,4.11348908]
[1673993040565,0.00642574,21310.0,21309.0,4.2928431]
[1673993040828,0.00642574,21310.0,21309.0,3.70317797]
[1673993041356,0.00942574,21310.0,21309.0,3.72817797]
[1673993041610,0.00942574,21310.0,21309.0,4.24538232]
[1673993041916,0.00942574,21310.0,21309.0,4.41397493]
[1673993042659,0.00942574,21310.0,21309.0,4.3015793]
[1673993042915,0.00942574,21310.0,21309.0,4.41396753]
[1673993043721,0.00942574,21310.0,21309.0,4.35752046]
[1673993044521,0.00642574,21312.0,21310.0,0.15]
[1673993044782,0.00642574,21312.0,21311.0,3.30594878]
[1673993045044,0.00642574,21312.0,21311.0,6.19843797]
[1673993045299,0.00642574,21312.0,21311.0,6.1984397]
[1673993045568,0.00642574,21312.0,21311.0,5.97393093]
[1673993046032,0.00642574,21312.0,21311.0,5.8614469]
[1673993046035,0.00642574,21312.0,21311.0,5.69277942]
[1673993046606,0.00642574,21312.0,21311.0,4.78575657]
[1673993047165,0.01042574,21312.0,21311.0,4.83775657]
[1673993047955,0.00608725,21314.0,21312.0,0.15]
[1673993048218,0.00608725,21314.0,21313.0,4.63987219]
[1673993048492,0.00608725,21314.0,21313.0,5.22423424]
[1673993048747,0.00608725,21314.0,21313.0,4.20671257]
[1673993050388,0.03708725,21314.0,21313.0,4.21171257]
[1673993050901,0.00608725,21314.0,21313.0,4.20671257]
[1673993051202,0.00908725,21314.0,21313.0,4.26771257]
[1673993051458,0.00908725,21314.0,21313.0,4.92841257]
[1673993052022,0.00642487,21318.0,21313.0,4.92841257]
[1673993052023,0.00642487,21318.0,21315.0,0.15]
[1673993052277,0.00642487,21318.0,21317.0,0.60465]
[1673993052815,0.00642487,21318.0,21317.0,2.088547]
[1673993053087,0.00642487,21318.0,21317.0,1.703997]
[1673993053593,0.03442487,21318.0,21317.0,1.703997]
[1673993053860,0.00642487,21318.0,21317.0,1.703997]
[1673993054109,0.03442487,21318.0,21317.0,1.858997]
[1673993055796,0.03442487,21318.0,21317.0,1.713697]
[1673993056310,0.03442487,21318.0,21317.0,2.13476952]
[1673993056848,0.03442487,21318.0,21317.0,2.20846952]
[1673993057124,0.03442487,21318.0,21317.0,2.25549857]
[1673993057377,0.03442487,21318.0,21317.0,1.76022605]
[1673993057912,0.03442487,21318.0,21317.0,1.61022605]
[1673993058978,0.00642487,21318.0,21317.0,1.708197]
[1673993059250,0.00642487,21318.0,21317.0,1.652197]
[1673993059503,0.00642487,21318.0,21317.0,1.558197]
[1673993059808,0.00642487,21318.0,21317.0,1.65442269]
[1673993060069,0.00642487,21318.0,21317.0,1.71042269]
[1673993060369,0.00642487,21318.0,21317.0,1.73012269]
[1673993060619,0.00642487,21318.0,21317.0,1.71092269]
[1673993061385,0.00642487,21318.0,21317.0,1.58012269]
[1673993061651,0.00642487,21318.0,21317.0,1.57162269]
[1673993068944,0.00642487,21318.0,21317.0,1.69345174]
[1673993069209,0.00642487,21318.0,21317.0,1.64642269]
[1673993069471,0.00642487,21318.0,21317.0,1.79642269]
[1673993069967,0.00642487,21318.0,21317.0,1.64642269]
[1673993070266,0.00642487,21318.0,21317.0,1.57162269]
[1673993070502,0.00642487,21318.0,21317.0,1.69345174]
[1673993071018,0.00642487,21318.0,21317.0,1.61865174]
[1673993071519,0.00642487,21318.0,21317.0,1.57162269]
[1673993071773,0.00642487,21318.0,21317.0,1.72162269]
[1673993072292,0.00642487,21318.0,21317.0,1.76865174]
[1673993072799,0.00642487,21318.0,21317.0,1.67465174]
[1673993073061,0.00642487,21318.0,21317.0,1.76865174]
[1673993074126,0.00642487,21318.0,21317.0,1.84275174]
[1673993074365,0.00642487,21318.0,21317.0,2.07730174]
[1673993074617,0.00632884,21318.0,21317.0,1.92730174]
[1673993075375,0.00632884,21318.0,21317.0,2.07730174]
[1673993076713,0.00632884,21318.0,21317.0,1.92730174]
[1673993079109,0.00632884,21318.0,21317.0,2.07730174]
[1673993079377,0.00632884,21318.0,21317.0,2.8094669]
[1673993080703,0.00632884,21318.0,21317.0,2.76243785]
[1673993080962,0.00632884,21318.0,21317.0,2.90833785]
[1673993081225,0.00632884,21318.0,21317.0,2.9553669]
[1673993081780,0.00632884,21318.0,21317.0,3.52643942]
[1673993082049,0.00632884,21318.0,21317.0,3.21747714]
[1673993082838,0.00632884,21318.0,21317.0,3.1053669]
[1673993083652,0.00632884,21318.0,21317.0,2.9553669]
[1673993084208,0.00632884,21318.0,21317.0,3.1053669]
[1673993084467,0.00632884,21318.0,21317.0,2.98292714]
[1673993084761,0.00632884,21318.0,21317.0,3.1053669]
[1673993085021,0.00632884,21318.0,21317.0,3.21747714]
[1673993086147,0.00632884,21318.0,21317.0,4.03730002]
[1673993086399,0.00632884,21318.0,21317.0,4.03768132]
[1673993086660,0.00632884,21318.0,21317.0,3.9255799]
[1673993086924,0.00632884,21318.0,21317.0,3.34467336]
[1673993087179,0.00632884,21318.0,21317.0,3.44764349]
[1673993087711,0.00632884,21318.0,21317.0,3.22292833]
[1673993088245,0.00632884,21318.0,21317.0,3.12892833]
[1673993088500,0.00632884,21318.0,21317.0,3.55000085]
[1673993088775,0.00632884,21318.0,21317.0,3.36336037]
[1673993089339,0.00632884,21318.0,21317.0,3.64430166]
[1673993089597,0.00632884,21318.0,21317.0,4.15003959]
[1673993091188,0.00632884,21318.0,21317.0,4.37756959]
[1673993091718,0.00632884,21318.0,21317.0,3.73170837]
[1673993092167,0.00632884,21318.0,21317.0,3.9565559]
[1673993093223,0.00632884,21318.0,21317.0,4.15278089]
[1673993093486,0.00632884,21318.0,21317.0,5.94758423]
[1673993094842,0.00632884,21318.0,21317.0,4.53103166]
[1673993096703,0.00632884,21318.0,21317.0,4.57806071]
[1673993097241,0.00632884,21318.0,21317.0,4.15698819]
[1673993097501,0.00632884,21318.0,21317.0,4.57806071]
[1673993097758,0.00632884,21318.0,21317.0,4.43786453]
[1673993098317,0.00632884,21318.0,21317.0,4.85893705]
[1673993098603,0.00632884,21318.0,21317.0,4.62440705]
[1673993098853,0.0062267,21318.0,21317.0,4.57805071]
[1673993099118,0.0062267,21318.0,21317.0,4.15697819]
[1673993099644,0.0062267,21318.0,21317.0,3.77852395]
[1673993100682,0.0062267,21318.0,21317.0,4.19959647]
[1673993100929,0.0062267,21318.0,21317.0,4.19960647]
[1673993102696,0.0062267,21318.0,21317.0,4.42428341]
[1673993102940,0.0062267,21318.0,21317.0,4.19960647]
[1673993103207,0.0062267,21318.0,21317.0,4.42428386]